bitfinex/quotes_BTCUSD_20240727
["timestamp","ask_amount","ask_price","bid_price","bid_amount"]
[1722087984122,0.00084,69400.0,69395.0,0.22538936]
[1722087984328,0.00084,69400.0,69398.0,0.144094]
[1722087984530,0.02345454,69400.0,69399.0,0.144094]
[1722087984871,0.02345454,69400.0,69399.0,0.58254157]
[1722087985007,0.02345454,69400.0,69399.0,0.99049098]
[1722087985204,0.00084,69400.0,69399.0,0.99049098]
[1722087985437,0.00034,69400.0,69399.0,0.99049098]
[1722087986500,0.03,69405.0,69404.0,0.720417]
[1722087986726,0.03,69405.0,69404.0,1.27860498]
[1722087987155,0.03,69405.0,69404.0,0.99043798]
[1722087987689,0.03,69405.0,69404.0,0.41410398]
[1722087987956,0.03,69405.0,69404.0,0.16425957]
[1722087988138,0.03,69405.0,69404.0,0.71626168]
[1722087988541,0.03,69405.0,69404.0,0.42809468]
[1722087988718,0.05261227,69405.0,69404.0,0.014]
[1722087988921,0.05461227,69405.0,69404.0,0.014]
[1722087989121,0.05461227,69405.0,69404.0,0.028]
[1722087989502,0.05261227,69405.0,69404.0,0.028]
[1722087989705,0.03,69405.0,69404.0,0.028]
[1722087989886,0.032,69405.0,69404.0,0.014]
[1722087990091,0.1765,69405.0,69404.0,0.028]
[1722087990291,0.03,69405.0,69404.0,0.028]
[1722087990548,0.03,69405.0,69404.0,0.748417]
[1722087990696,0.03,69405.0,69404.0,0.92592031]
[1722087990891,0.03,69405.0,69404.0,0.48584588]
[1722087991094,0.03,69405.0,69404.0,1.50924508]
[1722087991296,0.00812,69407.0,69406.0,0.144079]
[1722087991519,0.00812,69407.0,69406.0,1.99636719]
[1722087991753,0.00812,69407.0,69406.0,2.2874068]
[1722087991937,0.00812,69407.0,69406.0,2.7971739]
[1722087992140,0.00812,69407.0,69406.0,2.83898994]
[1722087992344,0.00813,69411.0,69407.0,1.765842]
[1722087992345,8.7e-07,69408.0,69407.0,1.765842]
[1722087992596,0.00812,69448.0,69413.0,0.96767]
[1722087992803,0.00812,69448.0,69419.0,1.58736136]
[1722087993134,0.00812,69448.0,69419.0,2.49146735]
[1722087993332,2.4e-07,69420.0,69419.0,2.78322385]
[1722087993495,2.4e-07,69420.0,69419.0,3.25612107]
[1722087993695,0.00812,69448.0,69421.0,1.996436]
[1722087993920,0.00812,69448.0,69421.0,2.79123401]
[1722087994144,0.00812,69448.0,69421.0,1.99615019]
[1722087994406,0.01012,69439.0,69421.0,2.28883199]
[1722087994606,0.01012,69439.0,69421.0,2.42039132]
[1722087994806,0.00812,69439.0,69421.0,2.42039132]
[1722087995074,0.00812,69439.0,69421.0,2.31181972]
[1722087995264,0.00812,69439.0,69421.0,2.32581972]
[1722087995438,0.00812,69439.0,69421.0,2.13229432]
[1722087995656,0.00812,69439.0,69421.0,2.35461779]
[1722087995835,0.00812,69439.0,69421.0,2.67971169]
[1722087996043,0.00812,69439.0,69421.0,2.6771415]
[1722087996240,0.00812,69439.0,69421.0,2.62791558]
[1722087996438,0.00812,69439.0,69428.0,1.008238]
[1722087996664,0.00812,69439.0,69428.0,1.74188497]
[1722087997499,0.00812,69439.0,69428.0,1.76487773]
[1722087997702,0.00812,69439.0,69428.0,1.91447141]
[1722087997947,0.37114535,69435.0,69434.0,1.00815]
[1722087998138,0.36543609,69435.0,69434.0,1.27809097]
[1722087998359,0.36543609,69435.0,69434.0,1.56613397]
[1722087998559,0.36543609,69435.0,69434.0,1.58913397]
[1722087998679,0.36534609,69435.0,69434.0,1.58913397]
[1722087999033,0.36534609,69435.0,69434.0,1.65463397]
[1722087999261,0.36534609,69435.0,69434.0,1.63163397]
[1722087999485,0.36534609,69435.0,69434.0,1.91967697]
[1722087999680,0.36534609,69435.0,69434.0,2.2939691]
[1722088000434,0.36534609,69435.0,69434.0,2.25120241]
[1722088000650,0.34398645,69435.0,69434.0,1.78605292]
[1722088000820,0.34398645,69435.0,69434.0,1.40606079]
[1722088001023,0.32114359,69435.0,69434.0,1.55563324]
[1722088001223,0.00812,69448.0,69442.0,0.2876524]
[1722088001429,0.00812,69448.0,69442.0,1.37814716]
[1722088001595,0.00812,69448.0,69442.0,1.66615716]
[1722088001827,0.00812,69448.0,69442.0,2.24217716]
[1722088002039,0.3,69450.0,69442.0,2.24217716]
[1722088002040,0.22742404,69450.0,69449.0,0.14399]
[1722088002228,0.04414228,69450.0,69449.0,1.59746155]
[1722088002450,0.00812,69470.0,69464.0,0.840695]
[1722088002680,0.00812,69470.0,69464.0,2.05485373]
[1722088002877,0.00812,69470.0,69464.0,1.42610408]
[1722088003308,0.00812,69470.0,69464.0,1.01853486]
[1722088003500,0.00812,69470.0,69464.0,1.35664423]
[1722088003660,0.00812,69470.0,69464.0,1.64456223]
[1722088003999,0.02276569,69465.0,69464.0,0.75960686]
[1722088004201,0.00017672,69465.0,69464.0,1.04752486]
[1722088004449,0.00017672,69465.0,69464.0,0.48665786]
[1722088004661,0.00017672,69465.0,69464.0,0.53882854]
[1722088004824,0.00017672,69465.0,69464.0,0.45282854]
[1722088005075,0.00017672,69465.0,69464.0,0.28856897]
[1722088005076,0.00217672,69465.0,69464.0,0.28856897]
[1722088005215,0.00017672,69465.0,69461.0,0.25]
[1722088005413,0.00017672,69465.0,69462.0,0.15025957]
[1722088005790,0.00217672,69465.0,69464.0,0.028]
[1722088006026,0.29103372,69465.0,69464.0,0.014]
[1722088006193,0.29103372,69465.0,69450.0,0.25]
[1722088006194,0.002,69462.0,69450.0,0.25]
[1722088006435,0.1449,69461.0,69451.0,0.67616808]
[1722088006561,0.1449,69461.0,69451.0,0.22538936]
[1722088006764,0.1449,69461.0,69440.0,0.25]
[1722088006765,0.0805,69460.0,69443.0,0.45077872]
[1722088006967,0.0805,69460.0,69459.0,0.07512979]
[1722088007190,0.0805,69460.0,69452.0,0.07512979]
[1722088007375,0.0805,69460.0,69453.0,0.15025957]
[1722088007576,0.0805,69460.0,69459.0,0.07512979]
[1722088007785,0.0825,69460.0,69459.0,0.07512979]
[1722088008411,0.0805,69460.0,69459.0,0.07512979]
[1722088008626,0.0825,69460.0,69459.0,0.07512979]
[1722088008824,0.0835,69460.0,69459.0,0.07512979]
[1722088009407,0.0833,69460.0,69459.0,0.08912979]
[1722088009578,0.0803,69460.0,69459.0,0.23938936]
[1722088010167,0.0813,69460.0,69459.0,0.25238936]
[1722088010616,0.0813,69460.0,69459.0,0.39635836]
[1722088010795,0.0813,69460.0,69459.0,0.68429736]
[1722088010796,0.001,69460.0,69459.0,0.68429736]
[1722088010990,0.001,69460.0,69459.0,0.97223636]
[1722088011170,0.001,69460.0,69459.0,1.07223636]
[1722088011373,0.001,69460.0,69459.0,1.09523636]
[1722088011552,0.001,69460.0,69459.0,1.14084784]
[1722088011757,0.001,69460.0,69459.0,1.18694227]
[1722088012012,0.001,69460.0,69459.0,1.18494227]
[1722088012373,0.001,69460.0,69459.0,1.28157464]
[1722088012586,0.02359065,69460.0,69459.0,1.59314361]
[1722088012779,0.00017672,69465.0,69464.0,0.719795]
[1722088012998,0.00017672,69465.0,69464.0,2.07151234]
[1722088013198,0.00017672,69465.0,69464.0,1.66396197]
[1722088013428,0.00017672,69465.0,69464.0,1.78358151]
[1722088014216,0.00017672,69465.0,69464.0,2.48358151]
[1722088014437,0.00812,69470.0,69469.0,0.71387705]
[1722088014636,0.00812,69470.0,69469.0,1.48133416]
[1722088014873,0.00312,69470.0,69469.0,2.07564727]
[1722088015042,0.00312,69470.0,69469.0,1.83325164]
[1722088015183,0.00312,69470.0,69469.0,2.22142677]
[1722088015385,0.00312,69470.0,69469.0,1.62964877]
[1722088015607,0.00812,69492.0,69469.0,0.39287911]
[1722088015803,0.00812,69492.0,69480.0,0.65716736]
[1722088016020,0.00812,69492.0,69480.0,1.47620787]
[1722088016460,0.00812,69492.0,69480.0,1.76403877]
[1722088016882,7.42037309,69500.0,69498.0,0.143887]
[1722088017060,7.42037309,69500.0,69499.0,0.22538936]
[1722088017267,7.42037309,69500.0,69492.0,0.1]
[1722088017268,0.002,69495.0,69492.0,0.38856897]
[1722088017474,7.42037309,69500.0,69493.0,0.15025957]
[1722088017653,7.42237309,69500.0,69493.0,0.14457957]
[1722088017991,7.42037309,69500.0,69494.0,0.07512979]
[1722088018171,7.42037309,69500.0,69495.0,0.15025957]
[1722088018377,0.002,69499.0,69495.0,0.15025957]
[1722088018591,0.0793,69496.0,69495.0,0.15025957]
[1722088018794,0.0793,69496.0,69480.0,0.37769876]
[1722088018795,0.002,69492.0,69480.0,0.37769876]
[1722088019120,0.002,69492.0,69481.0,0.26986152]
[1722088019441,0.0686,69482.0,69481.0,0.15025957]
[1722088019644,0.0666,69482.0,69476.0,0.07512979]
[1722088019930,0.002,69481.0,69480.0,0.014]
[1722088020121,0.002,69481.0,69476.0,0.07512979]
[1722088020275,0.0666,69482.0,69476.0,0.22538936]
[1722088020477,0.0666,69482.0,69481.0,0.014]
[1722088020478,0.289822,69482.0,69481.0,0.014]
[1722088020665,0.0012194,69496.0,69462.0,0.25]
[1722088020666,0.0666,69474.0,69462.0,0.25]
[1722088020857,0.06574795,69474.0,69462.0,0.25]
[1722088021072,0.143944,69472.0,69462.0,0.25]
[1722088021282,0.143944,69472.0,69459.0,0.00812]
[1722088021283,0.0773,69471.0,69459.0,0.00812]
[1722088021489,0.0015542,69485.0,69459.0,0.00812]
[1722088021690,0.0773,69484.0,69459.0,0.00812]
[1722088021890,0.143947,69470.0,69452.0,0.07605379]
[1722088022086,0.0773,69469.0,69453.0,0.20796657]
[1722088022505,0.0773,69469.0,69462.0,0.007]
[1722088022876,0.0773,69473.0,69462.0,0.007]
[1722088023005,0.0773,69473.0,69453.0,0.20796657]
[1722088023006,0.143959,69464.0,69453.0,0.057707]
[1722088023230,0.0773,69465.0,69462.0,0.01]
[1722088023423,0.0773,69465.0,69463.0,0.07512979]
[1722088024002,0.0666,69464.0,69463.0,0.07512979]
[1722088024496,0.0666,69464.0,69463.0,0.22538936]
[1722088025901,0.0666,69464.0,69463.0,0.35504415]
[1722088026233,0.001,69465.0,69463.0,0.64361312]
[1722088026368,0.001,69465.0,69464.0,1.08970936]
[1722088026571,0.1439,69491.0,69464.0,0.36991436]
[1722088026824,0.1439,69491.0,69479.0,0.07512979]
[1722088027743,0.1439,69491.0,69486.0,0.07512979]
[1722088027949,0.1439,69491.0,69487.0,0.15025957]
[1722088028150,0.1509,69491.0,69487.0,0.15025957]
[1722088028697,0.1509,69491.0,69490.0,0.143905]
[1722088028698,0.007,69491.0,69490.0,0.143905]
[1722088028899,0.007,69491.0,69490.0,0.70156995]
[1722088029196,0.008,69491.0,69490.0,1.32293161]
[1722088029432,0.001,69491.0,69490.0,1.01552623]
[1722088029632,7.44037309,69500.0,69499.0,0.143886]
[1722088029837,7.44037309,69500.0,69499.0,0.70149873]
[1722088030059,7.44037309,69500.0,69499.0,0.98927173]
[1722088030295,7.44037309,69500.0,69499.0,1.27704473]
[1722088030664,7.44037309,69500.0,69499.0,1.59365773]
[1722088030856,7.44037309,69500.0,69499.0,2.76501564]
[1722088031064,7.44137309,69500.0,69499.0,1.8262606]
[1722088031471,7.44037309,69500.0,69499.0,1.06338972]
[1722088031670,7.44037309,69500.0,69499.0,1.24272808]
[1722088031874,7.44037309,69500.0,69499.0,2.06817816]
[1722088032126,7.44037309,69500.0,69499.0,2.03158183]
[1722088032327,7.44037309,69500.0,69499.0,2.44758183]
[1722088032527,7.26022061,69500.0,69499.0,2.31729169]
[1722088032700,7.26022061,69500.0,69499.0,2.11624145]
[1722088032902,7.26022061,69500.0,69499.0,1.78674473]
[1722088033125,7.26022061,69500.0,69499.0,1.22519873]
[1722088033335,7.26022061,69500.0,69499.0,1.10377185]
[1722088033550,7.26022061,69500.0,69499.0,0.77053973]
[1722088033747,7.28379667,69500.0,69499.0,0.78453973]
[1722088033948,7.42659667,69500.0,69499.0,0.38358016]
[1722088034147,7.42659667,69500.0,69499.0,0.264]
[1722088034346,7.42759667,69500.0,69499.0,0.028]
[1722088034558,7.42659667,69500.0,69499.0,0.014]
[1722088034948,7.42759667,69500.0,69499.0,0.028]
[1722088035179,0.1438,69495.0,69482.0,0.25]
[1722088035351,0.1438,69495.0,69484.0,0.45077872]
[1722088035550,0.1438,69495.0,69483.0,0.07512979]
[1722088035985,0.02258604,69493.0,69465.0,0.70077872]
[1722088036187,0.02258604,69493.0,69479.0,0.07512979]
[1722088036596,0.02258604,69493.0,69465.0,0.45077872]
[1722088036743,0.0783,69492.0,69465.0,0.45077872]
[1722088036962,0.02258604,69493.0,69466.0,0.52590851]
[1722088036963,0.0783,69479.0,69466.0,0.52590851]
[1722088037375,0.0783,69479.0,69473.0,0.07512979]
[1722088037780,0.02259111,69476.0,69473.0,0.07512979]
[1722088037982,0.02259111,69476.0,69474.0,0.00287839]
[1722088038186,0.02259111,69476.0,69473.0,0.07512979]
[1722088038348,0.02259111,69476.0,69474.0,0.15025957]
[1722088039350,0.02259111,69476.0,69474.0,0.15043283]
[1722088039574,0.02259111,69476.0,69475.0,0.11961672]
[1722088039771,0.02259111,69476.0,69475.0,0.26987686]
[1722088040335,0.02259111,69476.0,69475.0,1.16923286]
[1722088040532,0.02259111,69476.0,69475.0,1.97720514]
[1722088040767,0.02359111,69476.0,69475.0,1.97720514]
[1722088040985,0.0783,69509.0,69486.0,0.143913]
[1722088041186,0.0783,69509.0,69499.0,0.07512979]
[1722088041570,0.0783,69509.0,69499.0,0.22538936]
[1722088042274,0.0783,69509.0,69499.0,0.3449625]
[1722088042484,0.0783,69509.0,69485.0,0.28783]
[1722088042485,0.0783,69509.0,69481.0,0.28856897]
[1722088042684,0.00014549,69510.0,69482.0,0.07512979]
[1722088042685,0.1438,69499.0,69482.0,0.07512979]
[1722088042854,0.1438,69499.0,69476.0,0.25]
[1722088043000,0.1438,69499.0,69480.0,0.07512979]
[1722088043410,0.1438,69499.0,69475.0,0.006]
[1722088043636,0.1438,69499.0,69474.0,0.00017326]
[1722088043637,0.0783,69497.0,69474.0,0.00017326]
[1722088044042,0.1412,69493.0,69474.0,0.00017326]
[1722088044269,0.1412,69493.0,69484.0,0.012]
[1722088044270,0.287821,69488.0,69484.0,0.012]
[1722088044470,0.143915,69485.0,69484.0,0.012]
[1722088044846,0.143913,69487.0,69480.0,0.07512979]
[1722088045046,0.287816,69489.0,69480.0,0.07512979]
[1722088045252,0.1452,69493.0,69480.0,0.07512979]
[1722088045489,0.287817,69489.0,69480.0,0.07512979]
[1722088045627,0.1452,69493.0,69480.0,0.07512979]
[1722088046140,0.432746,69485.0,69484.0,0.006]
[1722088046364,0.861777,69485.0,69484.0,0.006]
[1722088046890,0.861777,69485.0,69474.0,0.00017326]
[1722088046891,0.719682,69475.0,69474.0,0.00017326]
[1722088047122,1.007555,69475.0,69474.0,0.00017326]
[1722088047334,0.1432,69485.0,69474.0,0.00017326]
[1722088047335,0.1412,69485.0,69474.0,0.00017326]
[1722088047537,0.43179,69478.0,69477.0,0.07512979]
[1722088047731,0.143936,69475.0,69474.0,0.00017326]
[1722088047948,0.860882,69475.0,69474.0,0.00017326]
[1722088048151,1.148755,69475.0,69474.0,0.00017326]
[1722088048290,1.17634984,69475.0,69474.0,0.00117326]
[1722088048515,1.17134984,69475.0,69474.0,0.00017326]
[1722088048721,0.143982,69453.0,69443.0,0.45077872]
[1722088049241,0.143982,69453.0,69434.0,0.48856897]
[1722088049242,0.0631,69453.0,69444.0,0.45077872]
[1722088049405,0.0631,69453.0,69439.0,0.07512979]
[1722088049605,0.02259749,69453.0,69439.0,0.07512979]
[1722088049797,0.02259749,69453.0,69446.0,0.057713]
[1722088050247,0.45454349,69453.0,69439.0,0.07512979]
[1722088050564,0.0781,69458.0,69452.0,0.04605379]
[1722088050763,0.431946,69453.0,69452.0,0.04605379]
[1722088051175,0.71991,69453.0,69452.0,0.000924]
[1722088051539,0.71991,69453.0,69439.0,0.07512979]
[1722088051540,0.288004,69444.0,69439.0,0.057719]
[1722088051745,0.1412,69453.0,69443.0,0.45077872]
[1722088051967,0.1412,69453.0,69440.0,0.07512979]
[1722088051968,0.0015542,69452.0,69448.0,0.07512979]
[1722088052371,0.0015542,69452.0,69448.0,0.22538936]
[1722088052770,0.0801,69453.0,69448.0,0.22538936]
[1722088052971,0.0791,69453.0,69448.0,0.22538936]
[1722088053180,0.0791,69453.0,69448.0,0.07512979]
[1722088053376,0.002,69453.0,69449.0,0.15313907]
[1722088053538,0.002,69453.0,69449.0,0.15025957]
[1722088053940,0.002,69453.0,69452.0,0.143984]
[1722088054299,0.002,69453.0,69452.0,0.68509033]
[1722088054591,0.001,69453.0,69452.0,1.04847957]
[1722088054862,0.0781,69476.0,69452.0,0.67902757]
[1722088055020,0.0781,69476.0,69471.0,0.07512979]
[1722088055424,0.0631,69483.0,69471.0,0.07512979]
[1722088055990,0.02259002,69475.0,69464.0,0.07512979]
[1722088056159,0.02259002,69475.0,69465.0,0.15025957]
[1722088056329,0.02259002,69475.0,69464.0,0.07512979]
[1722088056528,0.02259002,69475.0,69458.0,0.1]
[1722088056781,0.02259002,69475.0,69464.0,0.07512979]
[1722088057085,0.0631,69483.0,69464.0,0.07512979]
[1722088057584,0.0631,69483.0,69479.0,0.07512979]
[1722088057796,0.00084,69487.0,69480.0,0.15025957]
[1722088057963,0.00084,69487.0,69486.0,0.07512979]
[1722088058165,0.00084,69487.0,69479.0,0.36298579]
[1722088058362,0.00084,69487.0,69480.0,0.15025957]
[1722088058563,1.0,69483.0,69482.0,0.143922]
[1722088058788,1.006,69483.0,69482.0,0.86986957]
[1722088058994,1.006,69483.0,69482.0,0.70502557]
[1722088059147,1.0,69483.0,69482.0,0.25025957]
[1722088059902,1.001,69483.0,69482.0,0.25025957]
[1722088060155,1.02358495,69483.0,69482.0,0.15025957]
[1722088060369,1.02358495,69483.0,69479.0,0.28856897]
[1722088060564,1.001,69483.0,69482.0,0.07512979]
[1722088060768,1.001,69483.0,69479.0,0.43882854]
[1722088061007,1.001,69483.0,69481.0,0.07512979]
[1722088061208,1.002,69483.0,69482.0,0.014]
[1722088061408,1.001,69483.0,69481.0,0.07512979]
[1722088061630,1.001,69483.0,69482.0,0.15025957]
[1722088061788,1.001,69483.0,69482.0,0.16425957]
[1722088062113,1.0,69483.0,69482.0,0.30818157]
[1722088062316,1.001,69483.0,69482.0,0.30818157]
[1722088062451,1.001,69483.0,69482.0,0.59602557]
[1722088062452,0.001,69483.0,69482.0,0.59602557]
[1722088062653,0.00084,69487.0,69486.0,0.143913]
[1722088062856,0.00084,69487.0,69486.0,0.58274154]
[1722088063064,0.00084,69487.0,69486.0,0.43882854]
[1722088063704,0.02342323,69487.0,69486.0,0.43882854]
[1722088064106,0.02342323,69487.0,69486.0,0.28856897]
[1722088064843,0.10372323,69487.0,69486.0,0.31656897]
[1722088065044,0.10372323,69487.0,69457.0,0.07512979]
[1722088065045,0.16522323,69487.0,69468.0,0.45077872]
[1722088065249,0.16422323,69487.0,69474.0,0.05769]
[1722088065404,0.16422323,69487.0,69469.0,0.15025957]
[1722088065405,0.14164,69487.0,69469.0,0.15025957]
[1722088065603,0.0015542,69486.0,69469.0,0.15025957]
[1722088065817,0.0015542,69486.0,69470.0,0.057692]
[1722088066242,0.0015542,69486.0,69457.0,0.07512979]
[1722088066243,0.0615,69479.0,69457.0,0.07512979]
[1722088066503,0.287861,69478.0,69457.0,0.22538936]
[1722088066659,0.0615,69479.0,69458.0,0.057696]
[1722088066660,0.143937,69475.0,69458.0,0.057696]
[1722088066859,0.287869,69476.0,69458.0,0.057696]
[1722088066860,0.431806,69476.0,69458.0,0.057696]
[1722088067040,0.349357,69479.0,69458.0,0.057696]
[1722088067041,0.0015542,69475.0,69464.0,0.07512979]
[1722088067291,0.0015542,69475.0,69471.0,0.07512979]
[1722088067779,0.0015542,69475.0,69474.0,0.431815]
[1722088067984,0.0625,69486.0,69474.0,0.15025957]
[1722088067985,0.001,69486.0,69474.0,0.15025957]
[1722088068189,0.0793,69490.0,69485.0,0.07512979]
[1722088068566,0.0793,69490.0,69471.0,0.07512979]
[1722088068771,0.0793,69490.0,69485.0,0.07512979]
[1722088069585,0.007,69486.0,69485.0,0.07512979]
[1722088071024,1.01184,69487.0,69485.0,0.07512979]
[1722088071198,1.00084,69487.0,69485.0,0.07512979]
[1722088071423,0.009,69486.0,69485.0,0.07512979]
[1722088071663,0.009,69486.0,69485.0,0.001]
[1722088072181,0.009,69486.0,69475.0,0.287872]
[1722088072385,0.02258722,69486.0,69478.0,0.07512979]
[1722088072623,0.02458722,69486.0,69485.0,0.001]
[1722088073979,0.02458722,69486.0,69474.0,0.16145957]
[1722088074336,0.0015542,69485.0,69474.0,0.0112]
[1722088074732,0.0615,69484.0,69474.0,0.0112]
[1722088074936,0.0015542,69483.0,69474.0,0.0112]
[1722088075369,0.0015542,69481.0,69474.0,0.0112]
[1722088075928,0.0793,69482.0,69474.0,0.0132]
[1722088075929,0.0708542,69482.0,69474.0,0.0132]
[1722088076331,0.0708542,69482.0,69475.0,0.07512979]
[1722088076534,0.0708542,69482.0,69476.0,0.0015542]
[1722088077235,0.0708542,69482.0,69477.0,0.00287837]
[1722088077454,0.02258722,69486.0,69479.0,0.0015542]
[1722088077601,0.001,69481.0,69480.0,0.143926]
[1722088077800,0.001,69481.0,69480.0,0.58203757]
[1722088077982,0.02258722,69486.0,69480.0,0.43811157]
[1722088078184,0.02258722,69486.0,69485.0,0.143915]
[1722088078384,0.02258722,69486.0,69485.0,0.86983657]
[1722088078604,0.02258722,69486.0,69485.0,0.58200557]
[1722088079005,0.02258722,69486.0,69485.0,0.86983657]
[1722088079208,0.02358722,69486.0,69485.0,0.86983657]
[1722088080470,0.02258722,69486.0,69485.0,0.15025957]
[1722088080655,0.02258722,69486.0,69478.0,0.25]
[1722088080656,0.02258722,69486.0,69479.0,0.0015542]
[1722088080862,0.02358722,69486.0,69479.0,0.0015542]
[1722088081079,0.0615,69484.0,69479.0,0.0005542]
[1722088081705,0.0615,69484.0,69475.0,0.0005542]
[1722088082438,0.0615,69484.0,69471.0,0.000924]
[1722088082873,0.0615,69484.0,69475.0,0.0005542]
[1722088083501,0.0793,69483.0,69475.0,0.0005542]
[1722088083766,0.287853,69480.0,69475.0,0.0005542]
[1722088083931,0.001,69479.0,69471.0,0.000924]
[1722088084133,0.223221,69483.0,69475.0,0.0095542]
[1722088084354,0.143922,69482.0,69475.0,0.0095542]
[1722088084555,0.02258997,69478.0,69475.0,0.0005542]
[1722088084759,0.0006797,69481.0,69471.0,0.000924]
[1722088084994,0.008,69480.0,69475.0,0.0015542]
[1722088085174,0.0883,69483.0,69475.0,0.0015542]
[1722088085373,0.22322,69483.0,69475.0,0.0005542]
[1722088085609,0.019,69482.0,69475.0,0.001]
[1722088085962,0.143928,69479.0,69475.0,0.001]
[1722088086167,0.008,69482.0,69476.0,0.07512979]
[1722088086415,0.008,69482.0,69477.0,0.0005542]
[1722088086987,0.0793,69483.0,69477.0,0.0005542]
[1722088087538,0.001,69480.0,69477.0,0.0005542]
[1722088087752,0.02258801,69482.0,69477.0,0.0005542]
[1722088087895,0.02258801,69482.0,69481.0,0.431772]
[1722088087896,0.02658801,69482.0,69481.0,0.431772]
[1722088088100,0.02658801,69482.0,69481.0,1.08947687]
[1722088088101,0.02858801,69482.0,69481.0,1.08947687]
[1722088088295,0.02458801,69482.0,69481.0,1.08947687]
[1722088088499,0.02458801,69482.0,69481.0,0.51378087]
[1722088088742,0.02258801,69482.0,69481.0,0.51378259]
[1722088088973,0.02258801,69482.0,69481.0,0.39418357]
[1722088089533,0.02258801,69482.0,69481.0,0.68203157]
[1722088089855,0.02258801,69482.0,69481.0,0.39418357]
[1722088090075,0.02358801,69482.0,69481.0,0.96987957]
[1722088090281,0.02358801,69482.0,69481.0,0.68203157]
[1722088090451,0.02358801,69482.0,69481.0,0.25025957]
[1722088090657,0.02358801,69482.0,69481.0,0.1005542]
[1722088090831,0.02258801,69482.0,69481.0,0.0005542]
[1722088091020,0.02358801,69482.0,69481.0,0.012]
[1722088091220,0.16568801,69482.0,69481.0,0.012]
[1722088092459,0.16468801,69482.0,69474.0,0.0112]
[1722088093083,0.001,69481.0,69459.0,0.0005542]
[1722088093430,0.1411,69480.0,69458.0,0.04533287]
[1722088093565,0.0015542,69479.0,69458.0,0.04533287]
[1722088093996,0.143934,69476.0,69458.0,0.04533287]
[1722088094246,0.2894292,69475.0,69458.0,0.04533287]
[1722088094379,0.02414585,69475.0,69471.0,0.0009354]
[1722088094718,0.1454922,69475.0,69471.0,0.0009354]
[1722088094920,0.0015542,69475.0,69459.0,0.07512979]
[1722088095079,0.1411,69480.0,69460.0,0.0577]
[1722088095279,0.008,69479.0,69460.0,0.0577]
[1722088095481,0.1411,69480.0,69460.0,0.0577]
[1722088095682,0.1411,69480.0,69466.0,0.07512979]
[1722088095883,0.004,69475.0,69466.0,0.07512979]
[1722088096081,0.004,69475.0,69460.0,0.0577]
[1722088096352,0.004,69475.0,69459.0,0.07512979]
[1722088096533,0.0015542,69474.0,69459.0,0.07512979]
[1722088096747,0.004,69475.0,69466.0,0.07512979]
[1722088096889,0.0015542,69474.0,69466.0,0.07512979]
[1722088097090,0.14393,69478.0,69466.0,0.07512979]
[1722088097331,0.143935,69476.0,69466.0,0.07512979]
[1722088097560,0.02259196,69473.0,69466.0,0.07512979]
[1722088098844,0.02359196,69473.0,69466.0,0.07512979]
[1722088099233,0.02359196,69473.0,69459.0,0.07512979]
[1722088099234,0.0787,69470.0,69459.0,0.07512979]
[1722088099611,0.02359196,69473.0,69467.0,0.0663]
[1722088099814,0.02459196,69473.0,69467.0,0.0663]
[1722088100013,0.02459196,69473.0,69472.0,0.143942]
[1722088100238,0.1411,69472.0,69468.0,0.07512979]
[1722088100644,0.0787,69472.0,69468.0,0.07512979]
[1722088101635,0.0787,69472.0,69460.0,0.057693]
[1722088101838,0.0787,69472.0,69448.0,0.07512979]
[1722088101839,0.00787,69471.0,69449.0,0.537977]
[1722088102034,0.0797,69472.0,69465.0,0.07512979]
[1722088102477,0.0797,69472.0,69459.0,0.057702]
[1722088102677,0.0797,69472.0,69458.0,0.07512979]
[1722088102678,0.0624,69471.0,69458.0,0.07512979]
[1722088102876,0.0624,69471.0,69467.0,0.07512979]
[1722088103079,0.001,69472.0,69467.0,0.07512979]
[1722088103506,0.002,69472.0,69467.0,0.07512979]
[1722088103729,0.001,69472.0,69467.0,0.07512979]
[1722088103861,0.0624,69478.0,69467.0,0.07512979]
[1722088104292,0.001,69472.0,69468.0,0.07512979]
[1722088104494,0.002,69472.0,69468.0,0.07512979]
[1722088104719,0.002,69472.0,69471.0,0.143944]
[1722088104896,0.001,69472.0,69471.0,0.43471153]
[1722088105101,0.001,69472.0,69471.0,0.14682253]
[1722088105335,0.001,69472.0,69471.0,0.43471152]
[1722088105530,0.0787,69479.0,69473.0,0.14394]
[1722088105739,0.0787,69479.0,69476.0,0.07512979]
[1722088106282,0.0787,69479.0,69444.0,0.02884]
[1722088106405,0.2616,69472.0,69465.0,0.07512979]
[1722088106990,0.001,69472.0,69465.0,0.07512979]
[1722088107098,0.0787,69479.0,69465.0,0.07512979]
[1722088107541,0.0642,69478.0,69473.0,0.07512979]
[1722088109005,0.0642,69478.0,69465.0,0.07512979]
[1722088109325,0.001,69472.0,69465.0,0.07512979]
[1722088109724,0.0642,69478.0,69465.0,0.07512979]
[1722088109926,0.2616,69472.0,69466.0,0.07512979]
[1722088110531,0.0642,69478.0,69466.0,0.07512979]
[1722088110833,0.0787,69479.0,69466.0,0.07512979]
[1722088111232,0.001,69472.0,69466.0,0.07512979]
[1722088111503,0.0787,69479.0,69466.0,0.07512979]
[1722088111902,0.02259033,69476.0,69466.0,0.07512979]
[1722088112101,0.02259033,69476.0,69473.0,0.07512979]
[1722088112307,0.0787,69479.0,69473.0,0.07512979]
[1722088112463,0.0787,69479.0,69466.0,0.07512979]
[1722088113108,0.00082675,69472.0,69466.0,0.07512979]
[1722088113489,0.001,69472.0,69466.0,0.07512979]
[1722088114258,0.0787,69479.0,69466.0,0.07512979]
[1722088114659,0.001,69472.0,69466.0,0.07512979]
[1722088115663,0.002,69469.0,69466.0,0.04512979]
[1722088116629,0.002,69469.0,69466.0,0.04605379]
[1722088117029,0.003,69469.0,69466.0,0.04605379]
[1722088117235,0.0642,69468.0,69466.0,0.000924]
[1722088118750,0.0652,69468.0,69466.0,0.000924]
[1722088118975,0.08779163,69468.0,69466.0,0.000924]
[1722088119599,0.0652,69468.0,69466.0,0.000924]
[1722088120418,0.0652,69468.0,69467.0,0.07512979]
[1722088120419,0.002,69468.0,69467.0,0.07512979]
[1722088120639,0.0837,69468.0,69466.0,0.000924]